fUSD/lending_fUSD_20240105
["ID","MTS","AMOUNT","RATE_DAILY","PERIOD"]
[310299956,1704463987869,-659.74,0.0003041,2]
[310299957,1704463987879,-633.409938,0.00032328,2]
[310299958,1704463987903,-5.18309404,0.00032328,2]
[310299959,1704463988357,-659.74,0.00030684,2]
[310299960,1704463988368,-659.74,0.00030958,2]
[310299961,1704463988378,-500.0,0.00031232,2]
[310299962,1704463988387,-480.33523449,0.00031232,2]
[310299963,1704463988399,-179.40476551,0.00031232,2]
[310299964,1704463988409,-318.20023454,0.00031506,2]
[310299965,1704463988422,-238.80976546,0.00031506,2]
[310299966,1704463988432,-142.31523504,0.00031506,2]
[310299967,1704463988446,-559.45476496,0.00031506,2]
[310299968,1704463988455,-137.09523754,0.00031506,2]
[310299969,1704463988467,-362.90476246,0.00031506,2]
[310299970,1704463988477,-288.65523774,0.0003178,2]
[310299971,1704463988491,-413.11476226,0.0003178,2]
[310299972,1704463988501,-68.05011184,0.0003178,2]
[310299973,1704463988513,-488.95988816,0.0003178,2]
[310299974,1704463988523,-472.6000835,0.0003178,2]
[310299975,1704463988535,-27.3999165,0.0003178,2]
[310299976,1704463988546,-701.77,0.00032054,2]
[310299977,1704463988556,-246.23423079,0.00032054,2]
[310299978,1704463988568,-253.76576921,0.00032054,2]
[310299979,1704463988579,-217.42696796,0.00032328,2]
[310299980,1704463988588,-828.58716593,0.00032328,2]
[310299981,1704463988600,-2004.89283407,0.00032328,2]
[310299982,1704463988610,-701.77,0.00032328,2]
[310299983,1704463988620,-574.8,0.00032602,2]
[310299984,1704463988629,-856.02,0.00032602,2]
[310299985,1704463988639,-2833.48,0.00032602,2]
[310299986,1704463988649,-171.02460193,0.00032876,2]
[310299987,1704463988660,-328.97539807,0.00032876,2]
[310299988,1704463988670,-526.58,0.00032876,2]
[310299989,1704463988680,-232.12846517,0.00032876,2]
[310299990,1704463988691,-342.67153483,0.00032876,2]
[310299991,1704463988702,-856.02,0.00032876,2]
[310299992,1704463988712,-819.44382681,0.00032876,2]
[310299993,1704463988724,-475.46775707,0.00032876,2]
[310299994,1704463988810,-1538.56841612,0.00032876,2]
[310299995,1704463988819,-500.0,0.0003315,3]
[310299996,1704463988829,-470.98628061,0.0003315,3]
[310299997,1704463988853,-55.59371939,0.0003315,3]
[310299998,1704463988863,-574.8,0.0003315,3]
[310299999,1704463988874,-856.02,0.0003315,3]
[310300000,1704463988884,-737.58628061,0.0003315,3]
[310300001,1704463988922,-500.0,0.00032328,2]
[310300002,1704463988931,-701.77,0.00032602,2]
[310300003,1704463988970,-1809.82175565,0.0003315,3]
[310300004,1704463988982,-286.07196374,0.0003315,3]
[310300005,1704463988992,-709.6,0.00033424,3]
[310300006,1704463989002,-16.32192147,0.00033424,3]
[310300007,1704463989013,-483.67807853,0.00033424,3]
[310300008,1704463989023,-101.35918981,0.00033424,3]
[310300009,1704463989035,-425.22081019,0.00033424,3]
[310300010,1704463989044,-429.36918981,0.00033424,3]
[310300011,1704463989056,-145.43081019,0.00033424,3]
[310300012,1704463989066,-637.36676387,0.00033424,3]
[310300013,1704463989082,-218.65323613,0.00033424,3]
[310300014,1704463989091,-1387.27814712,0.00033424,3]
[310300015,1704463989104,-1446.20185288,0.00033424,3]
[310300016,1704463989114,-709.6,0.00033698,3]
[310300017,1704463989123,-500.0,0.00033698,3]
[310300018,1704463989133,-526.58,0.00033698,3]
[310300019,1704463989143,-574.8,0.00033698,3]
[310300020,1704463989153,-856.02,0.00033698,3]
[310300021,1704463989163,-699.2386316,0.00033698,3]
[310300022,1704463989175,-2134.2413684,0.00033698,3]
[310300023,1704463989185,-709.6,0.00033972,3]
[310300024,1704463989195,-500.0,0.00033972,3]
[310300025,1704463989204,-526.58,0.00033972,3]
[310300026,1704463989214,-574.8,0.00033972,3]
[310300027,1704463989223,-424.55788583,0.00034,2]
[310300028,1704463989233,-424.55788583,0.00034,2]
[310300029,1704463989242,-424.55788583,0.00034,2]
[310300030,1704463989252,-424.55788583,0.00034,2]
[310300031,1704463989261,-186.58655198,0.00034,2]
[310300032,1704463989273,-237.97133385,0.00034,2]
[310300033,1704463989282,-424.55788583,0.00034,2]
[310300034,1704463989291,-424.55788583,0.00034,2]
[310300035,1704463989301,-424.55788583,0.00034,2]
[310300036,1704463989311,-826.79,0.00034246,3]
[310300037,1704463989321,-709.6,0.00034246,3]
[310300038,1704463989330,-500.0,0.00034246,3]
[310300039,1704463989340,-526.58,0.00034246,3]
[310300040,1704463989350,-826.79,0.0003452,3]
[310300041,1704463989360,-709.6,0.0003452,3]
[310300042,1704463989369,-221.53318208,0.00034794,3]
[310300043,1704463989379,-500.0,0.00034794,3]
[310300044,1704463989389,-951.95,0.00034794,3]
[310300045,1704463989399,-500.0,0.00034794,3]
[310300046,1704463989409,-645.44647537,0.00034794,3]
[310300047,1704463989419,-795.33,0.00034794,3]
[310300048,1704463989428,-585.0,0.00034794,3]
[310300049,1704463989437,-500.0,0.00034794,3]
[310300050,1704463989447,-500.0,0.00034794,3]
[310300051,1704463989457,-535.25,0.00034794,3]
[310300052,1704463989466,-573.11,0.00034794,3]
[310300053,1704463989476,-1278.92,0.00034794,3]
[310300054,1704463989485,-821.9196936,0.00034794,3]
[310300055,1704463989509,-424.55788583,0.00034,2]
[310300056,1704463989518,-293.5403064,0.00034794,3]
[310300057,1704463989529,-420.34485776,0.00034794,3]
[310300058,1704463989542,-102.55514224,0.00034794,3]
[310300059,1704463989552,-503.15,0.00034794,3]
[310300060,1704463989562,-500.0,0.00034794,3]
[310300061,1704463989572,-500.0,0.00034794,3]
[310300062,1704463989581,-898.64,0.00034794,3]
[310300063,1704463989591,-2197.46,0.00034794,3]
[310300064,1704463989600,-1050.63,0.00034794,3]
[310300065,1704463989610,-500.0,0.00034794,2]
[310300066,1704463989619,-512.25,0.00034794,3]
[310300067,1704463989629,-652.42,0.00034794,3]
[310300068,1704463989639,-500.96,0.00034794,3]
[310300069,1704463989652,-500.0,0.00034794,3]
[310300070,1704463989662,-737.52,0.00034794,3]
[310300071,1704463989672,-178.35998382,0.00034794,3]
[310300072,1704463989681,-500.0,0.00034794,3]
[310300073,1704463989692,-1408.67,0.00034794,3]
[310300074,1704463989702,-500.0,0.00034794,3]
[310300075,1704463989712,-519.09,0.00034794,3]
[310300076,1704463989721,-500.0,0.00034794,3]
[310300077,1704463989731,-500.0,0.00034794,3]
[310300078,1704463989741,-1017.17,0.00034794,3]
[310300079,1704463989751,-500.0,0.00034794,3]
[310300080,1704463989760,-1228.15,0.00034794,3]
[310300081,1704463989770,-500.0,0.00034794,3]
[310300082,1704463989779,-1193.22,0.00034794,3]
[310300083,1704463989789,-1709.82,0.00034794,3]
[310300084,1704463989798,-500.0,0.00034794,3]
[310300085,1704463989808,-521.26,0.00034794,3]
[310300086,1704463989817,-1009.32,0.00034794,3]
[310300087,1704463989827,-769.11,0.00034794,3]
[310300088,1704463989837,-500.0,0.00034794,3]
[310300089,1704463989846,-952.84,0.00034794,3]
[310300090,1704463989856,-500.0,0.00034794,3]
[310300091,1704463989865,-634.11,0.00034794,3]
[310300092,1704463989875,-1188.9,0.00034794,3]
[310300093,1704463989884,-558.13,0.00034794,3]
[310300094,1704463989894,-773.34,0.00034794,3]
[310300095,1704463989903,-881.16,0.00034794,3]
[310300096,1704463989913,-500.0,0.00034794,3]
[310300097,1704463989922,-500.0,0.00034794,3]
[310300098,1704463989932,-1431.77,0.00034794,3]
[310300099,1704463989942,-798.14,0.00034794,3]
[310300100,1704463989951,-500.0,0.00034794,3]
[310300101,1704463989961,-2061.68,0.00034794,3]
[310300102,1704463989971,-909.7,0.00034794,3]
[310300103,1704463989980,-500.0,0.00034794,3]
[310300104,1704463989990,-1481.56,0.00034794,3]
[310300105,1704463989999,-500.39,0.00034794,3]
[310300106,1704463990009,-982.39,0.00034794,3]
[310300107,1704463990023,-533.68328139,0.00034794,3]
[310300108,1704463990033,-500.0,0.00034794,3]
[310300109,1704463990044,-616.4,0.00034794,3]
[310300110,1704463990054,-615.45,0.00034794,3]
[310300111,1704463990065,-815.67,0.00034794,3]
[310300112,1704463990075,-855.97,0.00034794,3]
[310300113,1704463990086,-656.28,0.00034794,3]
[310300114,1704463990098,-914.92,0.00034794,3]
[310300115,1704463990112,-759.49,0.00034794,3]
[310300116,1704463990123,-500.0,0.00034794,3]
[310300117,1704463990220,-612.52,0.00034794,3]
[310300118,1704463990230,-638.72,0.00034794,3]
[310300119,1704463990240,-500.0,0.00034794,3]
[310300120,1704463990249,-779.76,0.00034794,3]
[310300121,1704463990258,-1184.83,0.00034794,3]
[310300122,1704463990268,-1087.44,0.00034794,3]
[310300123,1704463990278,-500.0,0.00034794,3]
[310300124,1704463990287,-908.56,0.00034794,3]
[310300125,1704463990298,-5038.11,0.00034794,3]
[310300126,1704463990307,-880.69,0.00034794,3]
[310300127,1704463990317,-884.22,0.00034794,3]
[310300128,1704463990326,-500.0,0.00034794,3]
[310300129,1704463990335,-828.3,0.00034794,3]
[310300130,1704463990345,-1954.72,0.00034794,3]
[310300131,1704463990357,-500.0,0.00034794,3]
[310300132,1704463990366,-500.0,0.00034794,3]
[310300133,1704463990376,-964.87,0.00034794,3]
[310300134,1704463990385,-500.0,0.00034794,3]
[310300135,1704463990395,-1145.56,0.00034794,3]
[310300136,1704463990404,-1200.04,0.00034794,3]
[310300137,1704463990415,-794.58,0.00034794,3]
[310300138,1704463990425,-855.41,0.00034794,3]
[310300139,1704463990434,-534.82,0.00034794,3]
[310300140,1704463990445,-773.85,0.00034794,3]
[310300141,1704463990456,-1238.16,0.00034794,3]
[310300142,1704463990466,-500.0,0.00034794,3]
[310300143,1704463990475,-3690.73,0.00034794,3]
[310300144,1704463990485,-200.4791168,0.00034794,3]
[310300145,1704463990495,-692.03,0.00034794,3]
[310300146,1704463990507,-559.53,0.00034794,3]
[310300147,1704463990518,-500.0,0.00034794,3]
[310300148,1704463990527,-416.59057973,0.00034794,3]
[310300149,1704463990538,-654.46,0.00034794,3]
[310300150,1704463990548,-954.52,0.00034794,3]
[310300151,1704463990560,-763.63,0.00034794,3]
[310300152,1704463990570,-1216.82,0.00034794,3]
[310300153,1704463990580,-876.69,0.00034794,3]
[310300154,1704463990589,-511.23,0.00034794,3]
[310300155,1704463990600,-1777.29,0.00034794,3]
[310300156,1704463990613,-813.3,0.00034794,3]
[310300157,1704463990624,-1082.13,0.00034794,3]
[310300158,1704463990636,-677.81,0.00034794,3]
[310300159,1704463990646,-1325.23,0.00034794,3]
[310300160,1704463990656,-500.0,0.00034794,3]
[310300161,1704463990667,-3298.71,0.00034794,3]
[310300162,1704463990677,-500.0,0.00034794,3]
[310300163,1704463990688,-798.97,0.00034794,3]
[310300164,1704463990699,-371.71652601,0.00034794,3]
[310300165,1704463990708,-900.8,0.00034794,3]
[310300166,1704463990717,-500.0,0.00034794,3]
[310300167,1704463990727,-1067.2,0.00034794,3]
[310300168,1704463990738,-2016.59,0.00034794,3]
[310300169,1704463990748,-752.23,0.00034794,3]
[310300170,1704463990758,-811.52,0.00034794,3]
[310300171,1704463990769,-1251.67,0.00034794,3]
[310300172,1704463990780,-500.0,0.00034794,3]
[310300173,1704463990790,-8654.29,0.00034794,3]
[310300174,1704463990801,-909.25,0.00034794,3]
[310300175,1704463990812,-952.02,0.00034794,3]
[310300176,1704463990822,-963.43,0.00034794,3]
[310300177,1704463990833,-2290.16,0.00034794,3]
[310300178,1704463990844,-511.88,0.00034794,3]
[310300179,1704463990857,-1293.97,0.00034794,3]
[310300180,1704463990867,-5023.74,0.00034794,3]
[310300181,1704463990878,-960.97,0.00034794,3]
[310300182,1704463990888,-1316.73,0.00034794,3]
[310300183,1704463990899,-500.0,0.00034794,3]
[310300184,1704463990908,-2888.44,0.00034794,3]
[310300185,1704463990918,-780.49,0.00034794,3]
[310300186,1704463990929,-213.57,0.00034794,3]
[310300187,1704463990939,-873.53,0.00034794,3]
[310300188,1704463990950,-840.85,0.00034794,3]
[310300189,1704463990960,-500.0,0.00034794,3]
[310300190,1704463990971,-552.42,0.00034794,3]
[310300191,1704463990981,-17362.55,0.00034794,3]
[310300192,1704463990991,-4809.34,0.00034794,3]
[310300193,1704463991002,-2346.84,0.00034794,3]
[310300194,1704463991012,-619.58,0.00034794,3]
[310300195,1704463991022,-607.5,0.00034794,3]
[310300196,1704463991031,-539.06,0.00034794,3]
[310300197,1704463991041,-9463.24,0.00034794,3]
[310300198,1704463991051,-724.80569653,0.00034794,3]
[310300199,1704463991067,-473.22390086,0.00034794,3]
[310300200,1704463991645,-251.18155046,0.00022999,2]
[310300201,1704463991659,-155.52825456,0.00030135,4]
[310300202,1704463991670,-500.0,0.00030136,2]
[310300203,1704463991681,-500.0,0.0003041,2]
[310300204,1704463991693,-500.0,0.00030684,2]
[310300205,1704463991703,-500.0,0.00030958,2]
[310300206,1704463991713,-102.62241056,0.00031232,2]
[310300207,1704463991726,-397.37758944,0.00031232,2]
[310300208,1704463991735,-659.74,0.00031506,2]
[310300209,1704463991745,-500.0,0.00031506,2]
[310300210,1704463991755,-659.74,0.0003178,2]
[310300211,1704463991764,-500.0,0.0003178,2]
[310300212,1704463991773,-659.74,0.00032054,2]
[310300213,1704463991783,-500.0,0.00032054,2]
[310300214,1704463991792,-659.74,0.00032328,2]
[310300215,1704463991801,-500.0,0.00032328,2]
[310300216,1704463991811,-500.0,0.00032602,2]
[310300217,1704463991820,-659.74,0.00032602,2]
[310300218,1704463991829,-701.77,0.00032876,2]
[310300219,1704463991839,-500.0,0.00032876,2]
[310300220,1704463991848,-659.74,0.00032876,2]
[310300221,1704463991858,-701.77,0.0003315,3]
[310300222,1704463991868,-500.0,0.0003315,3]
[310300223,1704463991877,-659.74,0.0003315,3]
[310300224,1704463991887,-701.77,0.00033424,3]
[310300225,1704463991897,-500.0,0.00033424,3]
[310300226,1704463991906,-659.74,0.00033424,3]
[310300227,1704463991916,-701.77,0.00033698,3]
[310300228,1704463991925,-500.0,0.00033698,3]
[310300229,1704463991934,-856.02,0.00033972,3]
[310300230,1704463991944,-2833.48,0.00033972,3]
[310300231,1704463991954,-207.25792656,0.00033972,3]
[310300232,1704463991966,-494.51207344,0.00033972,3]
[310300233,1704463991976,-604.57491132,0.00033972,3]
[310300234,1704463991985,-424.55788583,0.00034,2]
[310300235,1704463991995,-424.55788583,0.00034,2]
[310300236,1704463992005,-424.55788583,0.00034,2]
[310300237,1704463992015,-424.55788583,0.00034,2]
[310300238,1704463992025,-424.55788583,0.00034,2]
[310300239,1704463992035,-424.55788583,0.00034,2]
[310300240,1704463992044,-424.55788583,0.00034,2]
[310300241,1704463992054,-424.55788583,0.00034,2]
[310300242,1704463992064,-424.55788583,0.00034,2]
[310300243,1704463992074,-424.55788583,0.00034,2]
[310300244,1704463992085,-424.55788583,0.00034,2]
[310300245,1704463992095,-424.55788583,0.00034,2]
[310300246,1704463992106,-574.8,0.00034246,3]
[310300247,1704463992116,-2833.48,0.00034246,3]
[310300248,1704463992126,-856.02,0.00034246,3]
[310300249,1704463992136,-701.77,0.00034246,3]
[310300250,1704463992146,-500.0,0.0003452,3]
[310300251,1704463992155,-574.8,0.0003452,3]
[310300252,1704463992165,-526.58,0.0003452,3]
[310300253,1704463992176,-2833.48,0.0003452,3]
[310300254,1704463992185,-40.9660754,0.0003452,3]
[310300255,1704463992232,-192.24896308,0.00022999,2]
[310300256,1704463992242,-1323.85130258,0.00030135,4]
[310300257,1704463992254,-281.43027235,0.00030135,4]
[310300258,1704463992264,-659.74,0.00033698,3]
[310300259,1704463992274,-424.55788583,0.00034,2]
[310300260,1704463992284,-815.0539246,0.0003452,3]
[310300261,1704463992294,-701.77,0.0003452,3]
[310300262,1704463992305,-3709.12040261,0.00034794,3]
[310300263,1704463992315,-500.0,0.00034794,3]
[310300264,1704463992325,-4324.26,0.00034794,3]
[310300265,1704463992334,-2724.92,0.00034794,3]
[310300266,1704463992345,-746.12,0.00034794,3]
[310300267,1704463992355,-11882.1,0.00034794,3]
[310300268,1704463992365,-845.63,0.00034794,3]
[310300269,1704463992375,-500.0,0.00034794,3]
[310300270,1704463992385,-3292.08,0.00034794,3]
[310300271,1704463992395,-500.0,0.00034794,3]
[310300272,1704463992405,-644.83,0.00034794,3]
[310300273,1704463992415,-918.77,0.00034794,3]
[310300274,1704463992425,-500.0,0.00034794,3]
[310300275,1704463992435,-3344.35,0.00034794,3]
[310300276,1704463992446,-1395.08,0.00034794,3]
[310300277,1704463992456,-613.87,0.00034794,3]
[310300278,1704463992466,-1259.17,0.00034794,3]
[310300279,1704463992476,-2954.54,0.00034794,3]
[310300280,1704463992486,-737.12,0.00034794,3]
[310300281,1704463992496,-2366.41,0.00034794,3]
[310300282,1704463992506,-3361.08,0.00034794,3]
[310300283,1704463992515,-1558.45,0.00034794,3]
[310300284,1704463992525,-1062.83,0.00034794,3]
[310300285,1704463992535,-5440.99,0.00034794,3]
[310300286,1704463992546,-812.59,0.00034794,3]
[310300287,1704463992556,-1323.29,0.00034794,3]
[310300288,1704463992565,-646.75,0.00034794,3]
[310300289,1704463992577,-16516.01,0.00034794,3]
[310300290,1704463992588,-747.13,0.00034794,3]
[310300291,1704463992598,-1218.24,0.00034794,3]
[310300292,1704463992609,-678.9,0.00034794,3]
[310300293,1704463992619,-8220.31,0.00034794,3]
[310300294,1704463992629,-509.33,0.00034794,3]
[310300295,1704463992639,-625.64,0.00034794,3]
[310300296,1704463992650,-1093.85,0.00034794,3]
[310300297,1704463992660,-1229.71,0.00034794,3]
[310300298,1704463992670,-528.93,0.00034794,3]
[310300299,1704463992680,-500.0,0.00034794,3]
[310300300,1704463992690,-556.0,0.00034794,3]
[310300301,1704463992701,-696.27,0.00034794,3]
[310300302,1704463992711,-500.0,0.00034794,3]
[310300303,1704463992721,-1228.93,0.00034794,3]
[310300304,1704463992730,-906.38,0.00034794,3]
[310300305,1704463992740,-1479.47,0.00034794,3]
[310300306,1704463992750,-500.0,0.00034794,3]
[310300307,1704463992760,-1060.36,0.00034794,3]
[310300308,1704463992770,-1559.68,0.00034794,3]
[310300309,1704463992781,-500.0,0.00034794,3]
[310300310,1704463992791,-1024.05,0.00034794,3]
[310300311,1704463992801,-535.98,0.00034794,3]
[310300312,1704463992810,-192.63,0.00034794,3]
[310300313,1704463992820,-732.24,0.00034794,3]
[310300314,1704463992829,-20552.87,0.00034794,3]
[310300315,1704463992840,-764.89,0.00034794,3]
[310300316,1704463992851,-1384.47,0.00034794,3]
[310300317,1704463992862,-2343.7,0.00034794,3]
[310300318,1704463992872,-500.0,0.00034794,3]
[310300319,1704463992882,-855.82,0.00034794,3]
[310300320,1704463992891,-1443.03,0.00034794,3]
[310300321,1704463992901,-1467.75,0.00034794,3]
[310300322,1704463992910,-1302.9831205,0.00034794,3]
[310300323,1704463992949,-1124.7768795,0.00034794,3]
[310300324,1704463992959,-1262.81,0.00034794,3]
[310300325,1704463992969,-976.69,0.00034794,3]
[310300326,1704463992981,-1404.49,0.00034794,3]
[310300327,1704463992992,-963.68,0.00034794,3]
[310300328,1704463993001,-502.15,0.00034794,3]
[310300329,1704463993012,-1710.42,0.00034794,3]
[310300330,1704463993023,-1043.98,0.00034794,3]
[310300331,1704463993033,-500.0,0.00034794,3]
[310300332,1704463993043,-827.77,0.00034794,3]
[310300333,1704463993053,-670.86,0.00034794,3]
[310300334,1704463993065,-552.27,0.00034794,3]
[310300335,1704463993075,-2031.67,0.00034794,3]
[310300336,1704463993085,-593.61,0.00034794,3]
[310300337,1704463993096,-737.13,0.00034794,3]
[310300338,1704463993107,-7439.39,0.00034794,3]
[310300339,1704463993117,-973.07,0.00034794,3]
[310300340,1704463993127,-563.27,0.00034794,3]
[310300341,1704463993137,-585.98,0.00034794,3]
[310300342,1704463993146,-878.72,0.00034794,3]
[310300343,1704463993156,-1022.6,0.00034794,3]
[310300344,1704463993166,-1959.09,0.00034794,3]
[310300345,1704463993176,-732.57,0.00034794,3]
[310300346,1704463993185,-11053.17,0.00034794,3]
[310300347,1704463993195,-757.66,0.00034794,3]
[310300348,1704463993205,-488.21903017,0.00034794,3]
[310300349,1704463993215,-511.54,0.00034794,3]
[310300350,1704463993226,-1241.64,0.00034794,3]
[310300351,1704463993235,-3419.36,0.00034794,3]
[310300352,1704463993245,-1092.45,0.00034794,3]
[310300353,1704463993255,-2084.07,0.00034794,3]
[310300354,1704463993264,-558.28,0.00034794,3]
[310300355,1704463993274,-500.0,0.00034794,3]
[310300356,1704463993284,-1946.6,0.00034794,3]
[310300357,1704463993295,-1013.42,0.00034794,3]
[310300358,1704463993305,-479.91613944,0.00034794,3]
[310300359,1704463993315,-1212.22,0.00034794,3]
[310300360,1704463993325,-2289.25,0.00034794,3]
[310300361,1704463993334,-500.0,0.00034794,3]
[310300362,1704463993345,-500.0,0.00034794,3]
[310300363,1704463993355,-2361.2,0.00034794,3]
[310300364,1704463993365,-1128.19,0.00034794,3]
[310300365,1704463993374,-702.4,0.00034794,3]
[310300366,1704463993384,-764.39,0.00034794,3]
[310300367,1704463993394,-500.0,0.00034794,3]
[310300368,1704463993405,-517.07,0.00034794,3]
[310300369,1704463993415,-1542.41,0.00034794,3]
[310300370,1704463993425,-1440.35,0.00034794,3]
[310300371,1704463993434,-228.17939404,0.00034794,3]
[310300372,1704463993465,-424.55788583,0.00034,2]
[310300373,1704463993475,-486.82060596,0.00034794,3]
[310300374,1704463993485,-135.34597805,0.00034794,3]
[310300375,1704464011587,693.17182333,0.0002179,2]
[310300376,1704464125770,153.46,0.00021661,2]
[310300377,1704464172071,-1000.0,0.00023,3]
[310300378,1704464684019,151.41033736,0.000225,2]
[310300379,1704464885078,330.0,0.000225,2]
[310300380,1704464914403,345.00219432,0.000225,2]
[310300381,1704464921246,151.73351813,0.000225,2]
[310300382,1704464971701,163.46,0.00021749,2]
[310300383,1704465013042,1020.56378197,0.000225,2]
[310300384,1704465024913,345.00219431,0.000225,2]
[310300385,1704465027016,492.24990657,0.00021749,2]
[310300414,1704465031916,-150.0,0.00022597,2]
[310300415,1704465031927,-513.90943628,0.00022598,2]
[310300416,1704465031940,-5164.66544798,0.00022598,2]
[310300417,1704465031950,-251.58829516,0.00022598,2]
[310300418,1704465031960,-155.0,0.00022598,2]
[310300419,1704465031971,-1351.50634153,0.00022598,2]
[310300420,1704465031983,-1714.19719634,0.00022598,2]
[310300421,1704465031997,-1120.73766427,0.00022599,2]
[310300422,1704465032007,-23220.58332369,0.000226,2]
[310300423,1704465032043,-2177.80725297,0.000226,2]
[310300424,1704465032055,-337779.19062334,0.000226,2]
[310300425,1704465032066,-2990.7318,0.000226,2]
[310300426,1704465032076,-2051.57756355,0.00022698,2]
[310300427,1704465032086,-524.57391947,0.00022698,2]
[310300428,1704465032095,-156.04013159,0.00022698,2]
[310300429,1704465032105,-1132.97142941,0.00022698,2]
[310300430,1704465032115,-188.2992683,0.00022698,2]
[310300431,1704465032125,-938.23541636,0.00022699,2]
[310300432,1704465032135,-100000.0,0.000227,2]
[310300433,1704465032146,-242.64267204,0.00022998,2]
[310300434,1704465032155,-155.86245513,0.00022998,2]
[310300435,1704465032165,-931.13114601,0.00023,2]
[310300436,1704465032174,-250.0,0.00023,3]
[310300437,1704465032185,-999.99,0.00023,2]
[310300438,1704465032194,-499.99,0.00023,2]
[310300439,1704465032204,-330.12,0.00023,2]
[310300440,1704465032214,-246.37,0.00023,2]
[310300441,1704465032224,-151.41033732,0.00023122,2]
[310300442,1704465032234,-214.7,0.0002313,2]
[310300443,1704465032245,-861.55,0.00023208,2]
[310300444,1704465032255,-153.46,0.00023208,2]
[310300445,1704465032265,-151.41033732,0.00023743,2]
[310300446,1704465032275,-151.7335181,0.00024275,2]
[310300447,1704465032285,-151.41033732,0.00024365,2]
[310300448,1704465032295,-153.46,0.00024755,2]
[310300449,1704465032305,-210.0,0.00024857,2]
[310300450,1704465032316,-151.7335181,0.00024867,2]
[310300451,1704465032326,-2056.5857,0.00024867,2]
[310300452,1704465032335,-1263.7867,0.00024867,2]
[310300453,1704465032345,-406.4029,0.00024867,2]
[310300454,1704465032355,-3026.0,0.00024917,2]
[310300455,1704465032365,-833.0,0.00024917,2]
[310300456,1704465032374,-1846.0,0.00024917,2]
[310300457,1704465032383,-543.338,0.00024967,2]
[310300458,1704465032394,-720.589,0.00024967,2]
[310300459,1704465032403,-315.888,0.00024967,2]
[310300460,1704465032413,-1257.0,0.00024967,2]
[310300461,1704465032422,-607.847,0.00024967,2]
[310300462,1704465032433,-1014.108,0.00024967,2]
[310300463,1704465032442,-1962.39,0.00024967,2]
[310300464,1704465032451,-1127.999,0.00024967,2]
[310300465,1704465032461,-318.0,0.00024967,2]
[310300466,1704465032471,-448.527,0.00024967,2]
[310300467,1704465032479,-576.147,0.00024967,2]
[310300468,1704465032489,-236.23,0.00024967,2]
[310300469,1704465032500,-750.0,0.00024967,2]
[310300470,1704465032510,-2894.0,0.00024967,2]
[310300471,1704465032520,-19633.0,0.00024967,2]
[310300472,1704465032530,-5608.026,0.00024967,2]
[310300473,1704465032539,-2279.116,0.00024967,2]
[310300474,1704465032549,-4388.0,0.00024967,2]
[310300475,1704465032558,-41900.0,0.00024967,2]
[310300476,1704465032567,-4952.906,0.00024967,2]
[310300477,1704465032576,-406.458,0.00024967,2]
[310300478,1704465032586,-1301.0,0.00024967,2]
[310300479,1704465032595,-2411.0,0.00024967,2]
[310300480,1704465032604,-1062.714,0.00024967,2]
[310300481,1704465032613,-532.591,0.00024967,2]
[310300482,1704465032622,-151.41033732,0.00024986,2]
[310300483,1704465032632,-250.0,0.00024986,2]